Workbook

Sheet САД
A1: Прием пищи | B1: Наименование блюда | C1: Вес блюда | D1: Пищевые вещества | G1: Энергетическая ценность | H1: № рецептуры
D2: белки | E2: жиры | F2: углеводы
A3: Неделя 2, день 4 | B3: 2025-08-21
A4: завтрак
B5: КАША МАННАЯ МОЛОЧНАЯ ЖИДКАЯ | C5: 200 | D5: 6.35 | E5: 6.68 | F5: 34.5 | G5: 215.3 | H5: 227
B6: БУТЕРБРОДЫ С МАСЛОМ | C6: 30 | D6: 1.62 | E6: 8.43 | F6: 15.5 | G6: 125 | H6: 107
B7: КОФЕЙНЫЙ НАПИТОК С МОЛОКОМ | C7: 200 | D7: 1.6 | E7: 1.5 | F7: 12.6 | G7: 67.2 | H7: 395
B8: Итого за завтрак | C8: 430 | D8: 9.57 | E8: 16.61 | F8: 62.6 | G8: 407.5
A9: завтрак № 2
B10: СОК ФРУКТОВЫЙ ЯБЛОЧНЫЙ | C10: 100 | D10: 0.5 | E10: 0 | F10: 12.7 | G10: 55 | H10: 501
B11: Итого за завтрак № 2 | C11: 100 | D11: 0.5 | F11: 12.7 | G11: 55
A12: обед
B13: СУП ИЗ ОВОЩЕЙ | C13: 180 | D13: 3.68 | E13: 4.94 | F13: 21.3 | G13: 168.6 | H13: 290
B14: Компот из свежих плодов или ягод | C14: 180 | D14: 0 | E14: 0 | F14: 8.082 | G14: 50.67 | H14: 240
B15: ГОЛУБЦЫ ЛЕНИВЫЕ | C15: 75 | D15: 8.38 | E15: 7.56 | F15: 19.5 | G15: 128.1 | H15: 298
B16: ХЛЕБ ПШЕНИЧНЫЙ | C16: 30 | D16: 3.24 | E16: 1.32 | F16: 10.2 | G16: 47.52 | H16: 1
B17: ХЛЕБ УКРАИНСКИЙ | C17: 50 | D17: 3.65 | E17: 0.65 | F17: 16.753 | G17: 184.5 | H17: 2
B18: Соль пищевая йодированная (сад) | C18: 5 | D18: 0 | E18: 0 | F18: 0 | G18: 0 | H18: 1с
B19: Соус сметанный натуральный | C19: 50 | D19: 1.45 | E19: 8.45 | F19: 5.68 | G19: 108.5 | H19: 452
B20: Итого за обед | C20: 570 | D20: 20.4 | E20: 22.92 | F20: 81.515 | G20: 687.89
A21: полдник
B22: ЧАЙ С ЛИМОНОМ | C22: 200 | D22: 0 | E22: 0 | F22: 14.92 | G22: 59.67 | H22: 412
B23: Булочка ванильная | C23: 40 | D23: 8.12 | E23: 13.8 | F23: 16.28 | G23: 201.5 | H23: 582
B24: Итого за полдник | C24: 240 | D24: 8.12 | E24: 13.8 | F24: 31.2 | G24: 261.17
A25: ужин
B26: Картофельное пюре | C26: 100 | D26: 2.475 | E26: 4.709 | F26: 14.834 | G26: 102.5 | H26: 206
B27: Яблоко | C27: 75 | D27: 1.695 | E27: 0.57 | F27: 21.375 | G27: 106.32 | H27: 338
B28: Оладьи из печени по-кунцевски | C28: 80 | D28: 3.77 | E28: 7.3 | F28: 12.36 | G28: 124.68 | H28: 404
B29: ХЛЕБ ПШЕНИЧНЫЙ | C29: 25 | D29: 2.7 | E29: 1.1 | F29: 8.5 | G29: 39.6 | H29: 1
B30: Кисель из свежих ягод | C30: 200 | D30: 0.223 | E30: 0.112 | F30: 13.778 | G30: 57 | H30: 518
B31: Итого за ужин | C31: 480 | D31: 10.863 | E31: 13.791 | F31: 70.847 | G31: 430.1
A32: Итого за день | C32: 1820 | D32: 49.453 | E32: 67.121 | F32: 258.862 | G32: 1841.66

Sheet ЯСЛИ
A1: Прием пищи | B1: Наименование блюда | C1: Вес блюда | D1: Пищевые вещества | G1: Энергетическая ценность | H1: № рецептуры
D2: белки | E2: жиры | F2: углеводы
A3: Неделя 2, день 4 | B3: =САД!$B$3 -> 2025-08-21
A4: завтрак
B5: КАША МАННАЯ МОЛОЧНАЯ ЖИДКАЯ | C5: 150 | D5: 4.763 | E5: 5.01 | F5: 25.875 | G5: 161.475 | H5: 227
B6: БУТЕРБРОДЫ С МАСЛОМ | C6: 25 | D6: 1.35 | E6: 7.025 | F6: 12.917 | G6: 104.167 | H6: 107
B7: Кофейный напиток с молоком (ЯСЛИ) | C7: 180 | D7: 1.6 | E7: 1.3 | F7: 7.5 | G7: 46.8 | H7: 395/1
B8: Итого за завтрак | C8: 355 | D8: 7.713 | E8: 13.335 | F8: 46.292 | G8: 312.442
A9: завтрак № 2
B10: Напиток из сока плодово-ягодного | C10: 100 | D10: 0.723 | E10: 0 | F10: 13.889 | G10: 58.445 | H10: 1460
B11: Итого за завтрак № 2 | C11: 100 | D11: 0.723 | F11: 13.889 | G11: 58.445
A12: обед
B13: СУП ИЗ ОВОЩЕЙ | C13: 150 | D13: 3.067 | E13: 4.117 | F13: 17.75 | G13: 140.5 | H13: 290
B14: Компот из свежих плодов или ягод | C14: 180 | D14: 0 | E14: 0 | F14: 8.082 | G14: 50.67 | H14: 240
B15: ГОЛУБЦЫ ЛЕНИВЫЕ | C15: 60 | D15: 6.704 | E15: 6.048 | F15: 15.6 | G15: 102.48 | H15: 298
B16: ХЛЕБ ПШЕНИЧНЫЙ | C16: 20 | D16: 2.16 | E16: 0.88 | F16: 6.8 | G16: 31.68 | H16: 1
B17: ХЛЕБ УКРАИНСКИЙ | C17: 40 | D17: 2.92 | E17: 0.52 | F17: 13.403 | G17: 147.6 | H17: 2
B18: Соль пищевая йодированная (ясли) | C18: 3 | D18: 0 | E18: 0 | F18: 0 | G18: 0 | H18: 1с
B19: Соус сметанный натуральный | C19: 50 | D19: 1.45 | E19: 8.45 | F19: 5.68 | G19: 108.5 | H19: 452
B20: Итого за обед | C20: 503 | D20: 16.301 | E20: 20.015 | F20: 67.315 | G20: 581.43
A21: полдник
B22: ЧАЙ С ЛИМОНОМ (ясли) | C22: 180 | D22: 0 | E22: 0 | F22: 14.92 | G22: 59.67 | H22: 412
B23: Булочка ванильная | C23: 30 | D23: 6.09 | E23: 10.35 | F23: 12.21 | G23: 151.125 | H23: 582
B24: Итого за полдник | C24: 210 | D24: 6.09 | E24: 10.35 | F24: 27.13 | G24: 210.795
A25: ужин
B26: Картофельное пюре | C26: 110 | D26: 2.723 | E26: 5.18 | F26: 16.317 | G26: 112.75 | H26: 206
B27: Яблоко | C27: 70 | D27: 1.582 | E27: 0.532 | F27: 19.95 | G27: 99.232 | H27: 338
B28: Оладьи из печени по-кунцевски | C28: 60 | D28: 2.828 | E28: 5.475 | F28: 9.27 | G28: 93.51 | H28: 404
B29: ХЛЕБ ПШЕНИЧНЫЙ | C29: 20 | D29: 2.16 | E29: 0.88 | F29: 6.8 | G29: 31.68 | H29: 1
B30: Кисель из свежих ягод | C30: 180 | D30: 0.2 | E30: 0.1 | F30: 12.4 | G30: 51.3 | H30: 518
B31: Итого за ужин | C31: 440 | D31: 9.493 | E31: 12.167 | F31: 64.737 | G31: 388.472
A32: Итого за день | C32: 1608 | D32: 40.32 | E32: 55.867 | F32: 219.363 | G32: 1551.584

Sheet АЛЛЕРГИЯ
A1: Прием пищи | B1: Наименование блюда | C1: Вес блюда | D1: Пищевые вещества | G1: Энергетическая ценность | H1: № рецептуры
D2: белки | E2: жиры | F2: углеводы
A3: Неделя 2, день 4 | B3: =САД!$B$3 -> 2025-08-21
A4: завтрак
B5: КАША ГРЕЧНЕВАЯ РАССЫПЧАТАЯ | C5: 150 | D5: 37.5 | E5: 38.4 | F5: 65.5 | G5: 115.7 | H5: 202
B6: БАТОН НАРЕЗНОЙ | C6: 7 | D6: 0.006 | E6: 0.611 | F6: 0.012 | G6: 5.553 | H6: 105
B7: ЧАЙ С САХАРОМ | C7: 180 | H7: 381/1
B8: ЯЙЦО ВАРЕНОЕ | C8: 15 | D8: 3.113 | E8: 1.725 | F8: 2.025 | G8: 17.25 | H8: 267
B9: Итого за завтрак | C9: =SUM(C5:C8) -> 352 | D9: =SUM(D5:D8) -> 40.619 | E9: =SUM(E5:E8) -> 40.736 | F9: =SUM(F5:F8) -> 67.537 | G9: =SUM(G5:G8) -> 138.503
A10: завтрак № 2
B11: СОК ФРУКТОВЫЙ ЯБЛОЧНЫЙ | C11: 105 | D11: 0.525 | E11: 0 | F11: 13.335 | G11: 57.75 | H11: 501
B12: Итого за завтрак № 2 | C12: =SUM(C11) -> 105 | D12: =SUM(D11) -> 0.525 | E12: =SUM(E11) -> 0 | F12: =SUM(F11) -> 13.335 | G12: =SUM(G11) -> 57.75
A13: обед
B14: СУП ИЗ ОВОЩЕЙ | C14: 180 | D14: 3.68 | E14: 4.94 | F14: 21.3 | G14: 168.6 | H14: 290
B15: Компот из свежих плодов или ягод | C15: 180 | D15: 0 | E15: 0 | F15: 8.082 | G15: 50.67 | H15: 240
B16: ГОЛУБЦЫ ЛЕНИВЫЕ | C16: 50 | D16: 5.587 | E16: 5.04 | F16: 13 | G16: 85.4 | H16: 298
B17: ХЛЕБ ПШЕНИЧНЫЙ | C17: 20 | D17: 2.16 | E17: 0.88 | F17: 6.8 | G17: 31.68 | H17: 1
B18: ХЛЕБ УКРАИНСКИЙ | C18: 25 | D18: 1.825 | E18: 0.325 | F18: 8.377 | G18: 92.25 | H18: 2
B19: Итого за обед | C19: =SUM(C14:C18) -> 455 | D19: =SUM(D14:D18) -> 13.252 | E19: =SUM(E14:E18) -> 11.185 | F19: =SUM(F14:F18) -> 57.559 | G19: =SUM(G14:G18) -> 428.6
A20: полдник
B21: ЧАЙ С ЛИМОНОМ | C21: 180 | H21: 412/1
B22: ГАЛЕТЫ | C22: 12 | D22: 2.82 | E22: 3.168 | F22: 30.36 | G22: 183.024 | H22: 11/1
B23: Итого за полдник | C23: =SUM(C21:C22) -> 192 | D23: =SUM(D21:D22) -> 2.82 | E23: =SUM(E21:E22) -> 3.168 | F23: =SUM(F21:F22) -> 30.36 | G23: =SUM(G21:G22) -> 183.024
A24: ужин
B25: Картофель ОТВАРНОЙ С МАСЛОМ РАСТИТЕЛЬНЫМ | C25: 100 | D25: 1.667 | E25: 4.067 | F25: 15.934 | G25: 107.067 | H25: 54/21Г-2020
B26: Яблоко | C26: 95 | D26: 2.147 | E26: 0.722 | F26: 27.075 | G26: 134.672 | H26: 338
B27: Запеканка из печени | C27: 127 | D27: 15.172 | E27: 4.943 | F27: 13.937 | G27: 160.639 | H27: 355
B28: ХЛЕБ ПШЕНИЧНЫЙ | C28: 20 | D28: 2.16 | E28: 0.88 | F28: 6.8 | G28: 31.68 | H28: 1
B29: ЧАЙ С САХАРОМ | C29: 180 | H29: 381/1
B30: Итого за ужин | C30: =SUM(C25:C29) -> 522 | D30: =SUM(D25:D29) -> 21.146 | E30: =SUM(E25:E29) -> 10.612 | F30: =SUM(F25:F29) -> 63.746 | G30: =SUM(G25:G29) -> 434.058
A31: Итого за день | C31: 1820 | D31: 49.453 | E31: 67.121 | F31: 258.862 | G31: 1841.66
